bitfinex-derivatives/quotes_SOLF0:USTF0_20241227
["timestamp","ask_amount","ask_price","bid_price","bid_amount"]
[1735293104962,2.5885,193.38,193.3,4.62695145]
[1735293105164,2.5885,193.38,193.31,4.62695145]
[1735293105366,2.5885,193.38,193.32,4.62695145]
[1735293105555,2.5885,193.38,193.33,4.62695145]
[1735293105759,2.5885,193.38,193.34,4.62695145]
[1735293105955,2.5885,193.38,193.31,2.5894]
[1735293106158,2.5885,193.38,193.32,4.6293067]
[1735293106358,4.0,193.42,193.33,4.6293067]
[1735293106558,4.0,193.42,193.29,3.2106]
[1735293106765,4.0,193.42,193.3,4.62936817]
[1735293106967,4.0,193.42,193.31,4.62936817]
[1735293107165,7.18018251,193.43,193.32,4.62936817]
[1735293107465,7.18018251,193.43,193.3,1.6118]
[1735293107664,14.41608251,193.44,193.36,2.5887]
[1735293107967,14.41608251,193.44,193.37,4.62709095]
[1735293108167,14.41608251,193.44,193.36,2.5887]
[1735293108369,14.41608251,193.44,193.37,4.62532377]
[1735293108571,7.2359,193.44,193.35,2.5889]
[1735293108760,7.2359,193.44,193.36,4.62688022]
[1735293109068,7.2359,193.44,193.37,4.62688022]
[1735293109270,7.2359,193.44,193.31,4.0]
[1735293109467,7.2359,193.44,193.32,4.62980986]
[1735293109666,7.2359,193.44,193.33,4.62980986]
[1735293109865,7.2359,193.44,193.34,4.62980986]
[1735293110066,7.2359,193.44,193.33,2.5891]
[1735293110281,7.2359,193.44,193.34,4.62915464]
[1735293110474,7.2359,193.44,193.33,2.5891]
[1735293110765,7.2359,193.44,193.34,4.62997456]
[1735293110968,7.2359,193.44,193.34,2.589]
[1735293111169,7.2359,193.44,193.35,4.62943428]
[1735293111470,7.2359,193.44,193.33,2.5892]
[1735293111772,7.2359,193.44,193.34,4.62970645]
[1735293111971,7.2359,193.44,193.35,7.21745776]
[1735293112173,7.2359,193.44,193.36,4.62855776]
[1735293112367,7.2359,193.44,193.35,2.5889]
[1735293112569,7.2359,193.44,193.36,4.62842534]
[1735293112767,7.2359,193.44,193.35,2.5889]
[1735293112967,3.2359,193.44,193.36,7.21790758]
[1735293113174,4.0,193.46,193.37,4.62936545]
[1735293113364,4.0,193.46,193.36,2.5888]
[1735293113567,4.0,193.46,193.37,4.62953043]
[1735293113771,4.0,193.46,193.38,4.62953043]
[1735293113970,4.0,193.46,193.39,4.62953043]
[1735293114163,4.0,193.46,193.36,2.5888]
[1735293114369,1.6421,193.47,193.37,4.62654027]
[1735293114670,28.72073005,193.48,193.41,2.5881]
[1735293114863,28.72073005,193.48,193.31,4.0]
[1735293114864,28.72073005,193.48,193.42,4.62654027]
[1735293115068,28.72073005,193.48,193.37,1.522]
[1735293115267,2.5874,193.47,193.39,2.5882]
[1735293115467,28.72073005,193.48,193.4,4.61929656]
[1735293115665,28.72073005,193.48,193.41,4.61929656]
[1735293115868,28.72073005,193.48,193.42,4.61929656]
[1735293116073,7.1828,193.5,193.38,3.1371]
[1735293116074,3.1828,193.5,193.38,3.1371]
[1735293116274,3.1828,193.5,193.39,4.61728481]
[1735293116473,2.5873,193.48,193.41,2.5881]
[1735293116675,2.5873,193.48,193.42,4.62242908]
[1735293116879,2.5873,193.48,193.43,4.62242908]
[1735293117175,2.5873,193.48,193.44,4.62242908]
[1735293117473,2.5873,193.48,193.41,2.5881]
[1735293117678,2.5873,193.48,193.42,4.61938767]
[1735293117882,3.1828,193.5,193.43,4.61938767]
[1735293118076,3.1828,193.5,193.38,3.1371]
[1735293118274,3.1828,193.5,193.39,4.61749832]
[1735293118578,3.1828,193.5,193.4,4.61749832]
[1735293118579,2.5873,193.47,193.4,4.61749832]
[1735293118781,3.1828,193.5,193.41,4.61749832]
[1735293118977,3.1828,193.5,193.38,3.1371]
[1735293119177,3.1828,193.5,193.39,4.61477603]
[1735293119378,3.1828,193.5,193.39,2.5883]
[1735293119379,2.5873,193.47,193.39,2.5883]
[1735293119572,2.5873,193.47,193.4,4.61247252]
[1735293119775,3.1828,193.5,193.41,4.61247252]
[1735293119977,3.1828,193.5,193.39,2.5883]
[1735293119978,2.5874,193.46,193.39,2.5883]
[1735293120277,2.5874,193.46,193.4,4.60713069]
[1735293120479,2.5876,193.45,193.41,4.60713069]
[1735293120679,2.5876,193.45,193.38,5.7256]
[1735293120979,3.1828,193.5,193.38,1.6159]
[1735293122180,3.1828,193.5,193.39,4.60396733]
[1735293122378,3.1828,193.5,193.38,1.6159]
[1735293122577,1.6228,193.52,193.39,4.6046446]
[1735293122780,7.18018251,193.53,193.4,8.5846446]
[1735293122979,28.72073005,193.54,193.41,4.6046446]
[1735293123173,28.72073005,193.54,193.42,4.6046446]
[1735293123378,28.72073005,193.54,193.43,4.6046446]
[1735293123575,28.72073005,193.54,193.44,4.6046446]
[1735293123776,28.72073005,193.54,193.53,2.5865]
[1735293123973,28.72073005,193.54,193.46,4.6046446]
[1735293124179,2.5866,193.53,193.47,4.6046446]
[1735293124474,2.5866,193.53,193.46,3.1048]
[1735293124678,5.5761,193.59,193.47,4.60212778]
[1735293124879,2.5864,193.54,193.47,2.5873]
[1735293126281,5.5761,193.59,193.46,3.1048]
[1735293126484,2.5862,193.56,193.46,3.1048]
[1735293127486,2.5859,193.58,193.46,3.1048]
[1735293127692,7.1115,193.62,193.47,4.58545433]
[1735293127884,7.1115,193.62,193.48,4.58545433]
[1735293128082,7.1115,193.62,193.46,3.1048]
[1735293128083,2.5857,193.6,193.46,3.1048]
[1735293128285,3.1315,193.62,193.47,4.58322421]
[1735293128489,1.5551,193.62,193.52,2.5866]
[1735293128684,28.72073005,193.66,193.51,3.98]
[1735293129294,2.585,193.65,193.59,2.5856]
[1735293130490,2.5848,193.67,193.6,2.5856]
[1735293130692,5.5141,193.69,193.57,3.98]
[1735293131096,2.5849,193.65,193.59,2.5857]
[1735293132095,2.5848,193.67,193.59,2.5857]
[1735293132295,1.5341,193.69,193.59,2.5857]
[1735293132593,1.5341,193.69,193.57,3.98]
[1735293132793,2.585,193.64,193.57,3.98]
[1735293133198,1.5341,193.69,193.57,3.98]
[1735293133386,2.585,193.64,193.57,3.98]
[1735293133900,2.585,193.64,193.55,1.605]
[1735293134491,2.585,193.64,193.57,2.5859]
[1735293134687,2.5852,193.63,193.55,1.605]
[1735293134894,1.5341,193.69,193.55,1.605]
[1735293135187,1.5341,193.69,193.57,2.5859]
[1735293135394,1.5341,193.69,193.55,1.605]
[1735293135591,1.5341,193.69,193.53,1.6607]
[1735293135791,0.80936167,193.68,193.51,3.98]
[1735293135991,0.80936167,193.68,193.5,3.98]
[1735293136696,2.5856,193.6,193.53,2.5865]
[1735293136897,3.98,193.64,193.4,4.7033]
[1735293137098,3.2671,193.63,193.41,8.53145417]
[1735293137297,3.2671,193.63,193.42,4.55145417]
[1735293137493,3.2671,193.63,193.43,4.55145417]
[1735293137694,2.5857,193.59,193.44,4.55145417]
[1735293137890,3.2671,193.63,193.45,4.55145417]
[1735293138093,3.2671,193.63,193.46,4.55145417]
[1735293138298,3.2671,193.63,193.47,8.53145417]
[1735293138499,3.2671,193.63,193.48,4.55145417]
[1735293138800,2.5859,193.58,193.51,2.5868]
[1735293139992,2.5859,193.58,193.47,3.98]
[1735293140194,2.586,193.57,193.49,2.5869]
[1735293140394,3.2671,193.63,193.49,2.5869]
[1735293140594,3.2671,193.63,193.47,2.5872]
[1735293140793,3.2671,193.63,193.4,4.7033]
[1735293140794,3.2671,193.63,193.44,3.98]
[1735293140992,0.80964077,193.62,193.44,3.98]
[1735293141196,2.586,193.57,193.44,3.98]
[1735293141402,2.586,193.57,193.45,4.56705808]
[1735293141602,1.578,193.61,193.46,4.56705808]
[1735293141800,2.5861,193.56,193.44,3.98]
[1735293142005,3.98,193.58,193.45,4.56619931]
[1735293142200,3.98,193.58,193.44,3.98]
[1735293142504,3.98,193.58,193.46,2.5874]
[1735293142904,2.5864,193.54,193.46,2.5874]
[1735293143204,2.5864,193.54,193.47,2.5873]
[1735293144108,3.98,193.58,193.47,2.5873]
[1735293144308,2.5862,193.55,193.48,2.5871]
[1735293144606,3.98,193.58,193.43,3.98]
[1735293144807,3.98,193.58,193.44,4.5706943]
[1735293145007,3.98,193.58,193.47,2.5873]
[1735293145008,2.5862,193.55,193.47,2.5873]
[1735293146207,2.5864,193.54,193.43,3.98]
[1735293146506,2.5864,193.54,193.45,2.5874]
[1735293146711,2.5864,193.54,193.46,4.58000628]
[1735293147013,3.98,193.58,193.42,3.98]
[1735293147206,3.98,193.58,193.43,4.58105385]
[1735293147507,3.98,193.58,193.44,4.58105385]
[1735293147708,3.98,193.58,193.42,3.98]
[1735293147907,2.5868,193.51,193.43,4.5788951]
[1735293148098,3.98,193.58,193.42,3.98]
[1735293148303,3.98,193.58,193.43,4.57804973]
[1735293148505,2.5865,193.54,193.43,2.5878]
[1735293148805,3.98,193.58,193.43,2.5878]
[1735293150010,2.5871,193.49,193.41,2.588]
[1735293150208,3.98,193.58,193.42,4.57956959]
[1735293150511,0.80979217,193.57,193.4,4.7033]
[1735293150710,0.80979217,193.57,193.41,4.58155804]
[1735293150910,1.6256,193.56,193.4,4.7033]
[1735293151114,1.6256,193.56,193.41,4.5796874]
[1735293151312,1.5758,193.55,193.42,4.5796874]
[1735293151614,2.5869,193.5,193.43,2.5878]
[1735293151912,1.5758,193.55,193.4,4.7033]
[1735293152108,1.5758,193.55,193.41,4.58108064]
[1735293152410,7.18018251,193.58,193.42,4.58108064]
[1735293152616,7.18018251,193.58,193.43,4.58108064]
[1735293152911,7.18018251,193.58,193.52,2.5866]
[1735293153303,9.76598251,193.58,193.5,2.5868]
[1735293153504,2.5858,193.58,193.5,2.5868]
[1735293153709,1.578,193.61,193.5,2.5868]
[1735293154610,1.578,193.61,193.48,2.5871]
[1735293154812,1.578,193.61,193.47,3.98]
[1735293155113,1.578,193.61,193.48,4.5873026]
[1735293155308,1.578,193.61,193.47,3.98]
[1735293155509,2.586,193.57,193.5,2.5869]
[1735293155920,2.586,193.57,193.47,3.98]
[1735293156113,2.586,193.57,193.48,4.58964037]
[1735293156313,2.586,193.57,193.49,4.58964037]
[1735293156512,1.578,193.61,193.5,4.58964037]
[1735293156716,1.578,193.61,193.51,4.58964037]
[1735293156910,1.578,193.61,193.52,4.59155627]
[1735293157109,1.578,193.61,193.48,4.7295]
[1735293157310,1.578,193.61,193.49,4.59089003]
[1735293157617,1.578,193.61,193.5,4.59106082]
[1735293157815,1.578,193.61,193.48,4.7295]
[1735293158015,1.578,193.61,193.49,4.59594781]
[1735293158215,1.578,193.61,193.5,4.59594781]
[1735293158516,1.578,193.61,193.51,4.59594781]
[1735293158714,1.578,193.61,193.52,4.59594781]
[1735293158913,1.578,193.61,193.53,4.59594781]
[1735293159114,1.578,193.61,193.48,4.7295]
[1735293159417,1.578,193.61,193.49,4.59839057]
[1735293159620,1.578,193.61,193.5,4.59839057]
[1735293159814,1.578,193.61,193.51,4.59863617]
[1735293160025,2.5856,193.6,193.54,2.5863]
[1735293160319,1.578,193.61,193.48,4.7295]
[1735293160519,1.578,193.61,193.49,4.60296054]
[1735293160715,2.586,193.57,193.51,2.5867]
[1735293160917,2.586,193.57,193.52,4.60296054]
[1735293161118,2.586,193.57,193.53,4.60296054]
[1735293161318,1.578,193.61,193.48,4.7295]
[1735293161517,1.578,193.61,193.49,4.60364423]
[1735293161819,2.5872,193.49,193.41,2.5881]
[1735293162117,2.5872,193.49,193.42,4.60857314]
[1735293162324,2.5872,193.49,193.43,4.60857314]
[1735293162519,2.5872,193.49,193.44,4.60857314]
[1735293162724,2.5872,193.49,193.45,4.60857314]
[1735293162925,2.5872,193.49,193.42,2.5879]
[1735293163125,2.5873,193.47,193.43,4.60594026]
[1735293163322,4.6208,193.52,193.4,1.5359]
[1735293163527,4.6208,193.52,193.39,3.114]
[1735293163721,2.5871,193.49,193.41,4.60720106]
[1735293163920,4.6208,193.52,193.42,4.60720106]
[1735293164116,4.6208,193.52,193.35,3.98]
[1735293164322,4.6208,193.52,193.38,2.5885]
[1735293164521,4.6208,193.52,193.39,4.6093792]
[1735293164723,4.6208,193.52,193.4,4.6093792]
[1735293164924,4.6208,193.52,193.41,4.6093792]
[1735293165135,4.6208,193.52,193.42,4.6093792]
[1735293165422,4.6208,193.52,193.43,4.6093792]
[1735293165617,4.6208,193.52,193.44,4.6093792]
[1735293165817,4.6208,193.52,193.35,3.98]
[1735293166127,4.6208,193.52,193.36,4.60244516]
[1735293166319,4.6208,193.52,193.43,2.5878]
[1735293166524,4.6208,193.52,193.44,4.60244516]
[1735293166828,4.6208,193.52,193.45,4.60244516]
[1735293167128,4.6208,193.52,193.43,2.5878]
[1735293167326,4.6208,193.52,193.44,4.59967502]
[1735293167623,2.5868,193.51,193.45,4.59967502]
[1735293167926,4.6208,193.52,193.43,2.5878]
[1735293168119,4.6208,193.52,193.44,4.60010425]
[1735293168328,4.6208,193.52,193.43,2.5878]
[1735293168525,4.6208,193.52,193.44,4.59953769]
[1735293168723,4.6208,193.52,193.35,3.98]
[1735293169025,4.6208,193.52,193.36,4.59985171]
[1735293169326,2.5872,193.48,193.37,4.59985171]
[1735293169522,2.5872,193.48,193.38,4.59985171]
[1735293169717,2.5876,193.46,193.4,2.5882]
[1735293169925,2.5876,193.46,193.41,4.59985171]
[1735293170125,2.5876,193.46,193.42,4.59985171]
[1735293170326,2.5876,193.46,193.4,2.5882]
[1735293170628,2.5876,193.46,193.41,4.59691051]
[1735293170929,2.5876,193.46,193.42,4.59691051]
[1735293171126,2.5876,193.46,193.4,2.5882]
[1735293171425,2.5876,193.46,193.41,4.59798294]
[1735293171620,4.6208,193.52,193.35,3.98]
[1735293171825,2.5874,193.47,193.4,2.5882]
[1735293172027,2.5874,193.47,193.41,4.5979261]
[1735293172224,2.5874,193.47,193.4,2.5882]
[1735293172428,2.5875,193.46,193.41,4.59934926]
[1735293172625,2.5875,193.46,193.4,2.5882]
[1735293173128,2.5875,193.46,193.41,4.59803142]
[1735293173429,2.5875,193.46,193.4,2.5882]
[1735293173730,2.5875,193.46,193.41,4.59633343]
[1735293173930,2.5875,193.46,193.4,2.5882]
[1735293174129,2.5875,193.46,193.41,4.59654808]
[1735293174431,2.5875,193.46,193.4,2.5882]
[1735293174629,2.5875,193.46,193.41,4.60005479]
[1735293174819,2.5875,193.46,193.4,2.5882]
[1735293175024,2.5875,193.46,193.41,4.60188572]
[1735293175220,2.5875,193.46,193.4,2.5882]
[1735293175425,2.5875,193.46,193.41,4.60445434]
[1735293175631,2.5875,193.46,193.4,2.5882]
[1735293175825,2.5875,193.46,193.41,4.60747627]
[1735293176131,2.5875,193.46,193.4,2.5882]
[1735293176429,3.0816,193.52,193.41,4.61075974]
[1735293176629,3.0816,193.52,193.42,4.61075974]
[1735293176831,2.5873,193.48,193.43,4.61075974]
[1735293177029,2.5873,193.48,193.41,2.5881]
[1735293177227,2.5873,193.48,193.42,4.60803441]
[1735293177531,2.5873,193.48,193.43,4.60803441]
[1735293177732,2.5873,193.48,193.44,4.60803441]
[1735293177931,2.5873,193.48,193.35,3.98]
[1735293178127,2.5868,193.51,193.36,4.60917875]
[1735293178332,28.72073005,193.56,193.46,2.5874]
[1735293178933,2.5871,193.49,193.42,2.588]
[1735293179127,2.5871,193.49,193.43,4.60738807]
[1735293179328,41.56635603,193.57,193.44,4.60738807]
[1735293179524,0.80983332,193.56,193.45,4.60762654]
[1735293179726,0.80983332,193.56,193.41,3.96]
[1735293179925,0.80983332,193.56,193.42,4.60879916]
[1735293180130,0.80983332,193.56,193.43,4.60879916]
[1735293180331,29.53056337,193.56,193.41,6.5481]
[1735293180536,0.80983332,193.55,193.42,4.61291516]
[1735293180728,0.80983332,193.55,193.43,4.61291516]
[1735293180931,0.80983332,193.55,193.41,2.5881]
[1735293181238,0.80983332,193.55,193.42,4.61602369]
[1735293181532,7.18018251,193.54,193.43,4.61602369]
[1735293181735,7.18018251,193.54,193.41,2.5881]
[1735293181932,7.18018251,193.54,193.42,4.61659083]
[1735293182130,7.18018251,193.54,193.43,4.61659083]
[1735293182431,7.18018251,193.54,193.42,2.588]
[1735293182632,7.18018251,193.54,193.43,4.61912743]
[1735293182833,2.5872,193.48,193.4,2.5881]
[1735293183036,2.5872,193.48,193.41,4.62099741]
[1735293183238,2.5872,193.48,193.42,4.62099741]
[1735293183436,3.96,193.52,193.34,4.6367]
[1735293183637,2.34797992,193.51,193.35,4.62422104]
[1735293183938,2.34797992,193.51,193.36,4.62422104]
[1735293183939,0.81007992,193.5,193.36,4.62422104]
[1735293184136,2.5879,193.43,193.37,4.62422104]
[1735293184336,2.5879,193.43,193.38,4.62422104]
[1735293184635,2.5879,193.43,193.39,4.62422104]
[1735293184836,2.5879,193.43,193.36,2.5888]
[1735293185036,2.5879,193.43,193.37,4.62335342]
[1735293185233,2.5879,193.43,193.38,4.62335342]
[1735293185537,2.5879,193.43,193.39,4.62335342]
[1735293185737,2.5879,193.43,193.36,2.5888]
[1735293185933,2.5879,193.43,193.37,4.62053853]
[1735293186236,2.5879,193.43,193.38,4.62053853]
[1735293186439,2.5879,193.43,193.36,2.5888]
[1735293186638,2.5879,193.43,193.37,4.61409999]
[1735293186938,2.5879,193.43,193.38,4.61409999]
[1735293187135,2.5879,193.43,193.37,2.5886]
[1735293187333,2.5879,193.43,193.38,4.61141144]
[1735293187534,3.96,193.46,193.34,4.6367]
[1735293187829,3.96,193.46,193.35,4.61160362]
[1735293188031,3.96,193.46,193.34,3.1055]
[1735293188228,0.81034243,193.45,193.28,1.5499]
[1735293188436,3.96,193.46,193.29,4.60995211]
[1735293188437,0.81038099,193.44,193.29,4.60995211]
[1735293188636,0.81038099,193.43,193.3,4.60995211]
[1735293188844,2.44608099,193.42,193.27,60.33842507]
[1735293189045,2.45912212,193.41,193.28,4.61387346]
[1735293189245,3.96,193.4,193.29,4.61387346]
[1735293189446,2.589,193.35,193.27,62.92842507]
[1735293189645,2.589,193.35,193.28,4.61068665]
[1735293189846,2.5889,193.36,193.24,3.1659]
[1735293190043,3.96,193.4,193.25,4.61157664]
[1735293190244,0.81062284,193.39,193.26,4.61157664]
[1735293190546,0.81062284,193.39,193.22,2.5906]
[1735293190845,0.81062284,193.39,193.23,4.60960284]
[1735293191045,0.81062284,193.39,193.22,2.5906]
[1735293191639,0.81062284,193.39,193.21,4.1407]
[1735293191847,0.81062284,193.39,193.22,4.60771294]
[1735293192041,0.81062284,193.39,193.21,1.5499]
[1735293192247,0.81062284,193.39,193.04,39.35205185]
[1735293192248,7.99080535,193.39,193.17,3.96]
[1735293192448,0.81062284,193.38,193.18,4.60454966]
[1735293192647,0.81062284,193.38,193.19,4.60454966]
[1735293192847,0.81062284,193.38,193.17,3.96]
[1735293193049,2.5893,193.32,193.21,2.5907]
[1735293193243,3.96,193.31,193.17,3.96]
[1735293193442,3.96,193.31,193.18,4.60263044]
[1735293193643,3.96,193.31,193.19,4.60263044]
[1735293193844,3.96,193.31,193.25,2.5902]
[1735293194347,3.96,193.31,193.17,3.96]
[1735293194543,3.96,193.31,193.24,2.5904]
[1735293195448,2.5893,193.32,193.24,2.5904]
[1735293195644,2.5893,193.32,193.18,4.59909037]
[1735293195645,2.5892,193.33,193.19,4.59909037]
[1735293195841,2.5892,193.33,193.2,4.59909037]
[1735293196048,2.5892,193.33,193.21,4.59909037]
[1735293196253,2.5892,193.33,193.24,2.5903]
[1735293198249,5.6086,193.41,193.24,3.96]
[1735293198453,5.6086,193.41,193.25,9.31965886]
[1735293198655,5.6086,193.41,193.25,4.7285]
[1735293198850,0.81061468,193.4,193.25,4.7285]
[1735293199051,0.81067124,193.4,193.25,4.7285]
[1735293199656,5.6086,193.41,193.25,4.7285]
[1735293199856,2.5882,193.4,193.32,2.5893]
[1735293200157,3.96,193.43,193.26,4.59212781]
[1735293200352,2.5881,193.42,193.34,2.589]
[1735293200656,2.5881,193.42,193.3,3.96]
[1735293200855,2.5881,193.42,193.31,4.59212781]
[1735293201058,2.5881,193.42,193.36,2.5887]
[1735293201652,2.5881,193.41,193.34,2.5889]
[1735293202250,3.96,193.45,193.35,2.5889]
[1735293202449,3.96,193.45,193.31,4.58903255]
[1735293202657,3.96,193.45,193.34,2.589]
[1735293203250,3.96,193.45,193.3,3.96]
[1735293203251,3.96,193.45,193.36,2.5887]
[1735293203458,1.6493,193.46,193.36,2.5887]
[1735293203653,2.5878,193.44,193.32,4.58934729]
[1735293203857,2.5878,193.44,193.33,7.81607185]
[1735293204060,2.5878,193.44,193.33,4.8185]
[1735293204259,2.5878,193.44,193.34,4.58308431]
[1735293204562,2.5878,193.44,193.35,4.58308431]
[1735293204764,2.5879,193.43,193.33,4.8185]
[1735293204968,2.5879,193.43,193.34,4.58697068]
[1735293205164,2.5879,193.43,193.35,4.58697068]
[1735293205463,2.5879,193.43,193.33,4.8185]
[1735293205766,2.5879,193.43,193.34,4.59223891]
[1735293206062,2.5879,193.43,193.35,4.59223891]
[1735293206263,2.5879,193.43,193.38,2.5885]
[1735293206468,2.5879,193.43,193.33,4.8185]
[1735293206658,2.5879,193.43,193.34,4.59543676]
[1735293206857,2.5879,193.43,193.35,4.59543676]
[1735293207062,2.5879,193.43,193.36,4.59543676]
[1735293207261,2.5879,193.43,193.37,4.59543676]
[1735293207462,2.5879,193.43,193.37,2.5886]
[1735293208565,1.6366,193.54,193.33,8.7785]
[1735293208859,2.5877,193.44,193.38,2.5885]
[1735293209359,2.5875,193.46,193.33,8.7785]
[1735293209560,1.6366,193.54,193.34,4.58052425]
[1735293209862,2.587,193.5,193.43,2.5878]
[1735293210168,2.587,193.5,193.39,3.96]
[1735293210357,2.587,193.5,193.43,2.5878]
[1735293210563,2.5871,193.49,193.43,2.5878]
[1735293210758,5.5966,193.54,193.39,3.96]
[1735293210963,5.5966,193.54,193.4,4.57110534]
[1735293211161,5.5966,193.54,193.42,2.588]
[1735293212258,5.5966,193.54,193.33,4.8185]
[1735293212461,5.5966,193.54,193.34,3.96]
[1735293212659,5.5966,193.54,193.35,4.57775001]
[1735293212874,5.5966,193.54,193.36,4.57775001]
[1735293213067,0.80999869,193.53,193.37,4.57775001]
[1735293213272,5.5966,193.54,193.38,4.57859114]
[1735293213473,2.5874,193.47,193.4,2.5882]
[1735293214269,5.5966,193.54,193.41,2.5881]
[1735293214270,2.5872,193.49,193.41,2.5881]
[1735293215474,5.5966,193.54,193.41,2.5881]
[1735293215673,2.5872,193.48,193.41,2.5881]
[1735293216169,2.5873,193.47,193.4,2.5882]
[1735293216373,5.5966,193.54,193.34,3.96]
[1735293216575,0.80999628,193.53,193.35,4.57811587]
[1735293216876,2.5872,193.48,193.41,2.5881]
[1735293217072,3.96,193.52,193.34,3.96]
[1735293217272,2.587,193.49,193.35,4.57675211]
[1735293217472,2.587,193.49,193.36,4.57675211]
[1735293217775,2.587,193.49,193.41,2.588]
[1735293218273,2.5873,193.48,193.41,2.588]
[1735293219874,2.5875,193.46,193.38,4.57395067]
[1735293220075,3.96,193.52,193.34,3.96]
[1735293220276,3.96,193.52,193.35,4.57515456]
[1735293220477,3.96,193.52,193.34,3.96]
[1735293220478,3.96,193.52,193.36,4.57515456]
[1735293220674,2.5874,193.47,193.4,2.5882]
[1735293220879,3.96,193.52,193.38,4.57515456]
[1735293221081,2.5879,193.43,193.35,2.5888]
[1735293221277,2.5879,193.43,193.33,8.7785]
[1735293221583,2.5883,193.4,193.34,7.16514062]
[1735293221786,3.96,193.46,193.33,4.8185]
[1735293221978,3.96,193.46,193.34,4.57817754]
[1735293222179,2.5881,193.42,193.36,2.5886]
[1735293222381,3.96,193.46,193.33,4.8185]
[1735293222579,3.96,193.46,193.34,4.57648174]
[1735293222787,3.96,193.48,193.38,2.5885]
[1735293223581,3.96,193.48,193.33,4.8185]
[1735293223783,2.5875,193.46,193.4,2.5882]
[1735293225594,3.96,193.48,193.4,2.5882]
[1735293225791,2.5873,193.47,193.4,2.5882]
[1735293228184,3.96,193.48,193.4,2.5882]
[1735293228386,2.5875,193.46,193.4,2.5882]
[1735293235194,2.5876,193.45,193.4,2.5882]
[1735293237995,3.96,193.48,193.33,4.8185]
[1735293238196,2.5877,193.44,193.38,2.5884]
[1735293238498,2.5877,193.44,193.39,4.58719035]
[1735293238693,2.5877,193.44,193.39,2.5883]
[1735293240593,2.5879,193.43,193.39,2.5883]
[1735293241196,2.5879,193.43,193.4,4.60124207]
[1735293241401,2.5879,193.43,193.39,2.5883]
[1735293241591,2.5879,193.43,193.4,4.59958345]
[1735293241788,2.5879,193.43,193.39,2.5883]
[1735293241993,2.5879,193.43,193.4,4.60212141]
[1735293242195,2.5879,193.43,193.41,4.60520533]
[1735293242497,2.5879,193.43,193.39,2.5883]
[1735293242698,2.5879,193.43,193.4,4.60452014]
[1735293243000,2.5879,193.43,193.41,4.60452014]
[1735293243199,2.5879,193.43,193.42,4.61486771]
[1735293245394,2.5879,193.43,193.38,2.5884]
[1735293245598,2.5879,193.43,193.39,4.63016399]
[1735293245797,1.5372,193.47,193.4,4.63016399]
[1735293246000,4.1246,193.47,193.41,7.21878345]
[1735293246301,2.5874,193.47,193.42,4.63078345]
[1735293246502,2.5874,193.47,193.43,4.63078345]
[1735293246695,2.5874,193.47,193.44,4.63078345]
[1735293246895,2.5874,193.47,193.45,4.63078345]
[1735293247096,2.5874,193.47,193.46,4.63078345]
[1735293247799,2.5874,193.47,193.46,4.63271894]
[1735293248398,2.5874,193.47,193.41,2.588]
[1735293248700,2.5874,193.47,193.42,4.63563863]
[1735293248902,2.5874,193.47,193.43,4.63563863]
[1735293249097,28.72073005,193.51,193.44,4.63563863]
[1735293249304,28.72073005,193.51,193.45,4.63563863]
[1735293249501,28.72073005,193.51,193.46,4.63563863]
[1735293249700,28.72073005,193.51,193.47,4.63563863]
[1735293249901,28.72073005,193.51,193.48,4.63563863]
[1735293250204,8.71738251,193.53,193.49,4.63563863]
[1735293250502,8.71738251,193.53,193.45,2.5875]
[1735293250503,2.5868,193.51,193.45,2.5875]
[1735293250705,2.5868,193.51,193.46,4.63514608]
[1735293251003,2.5868,193.51,193.47,4.63514608]
[1735293251203,2.5868,193.51,193.48,4.63514608]
[1735293251498,2.5871,193.49,193.4,1.558]
[1735293251706,2.5871,193.49,193.41,4.63520829]